[Event "*** SCC Grand Prix: Titled Tuesday Blitz"]
[Site "Chess.com"]
[Date "2020.10.06"]
[Round "6"]
[White "RobertoJBM"]
[Black "GHANDEEVAM2003"]
[Result "0-1"]
[WhiteElo "2735"]
[BlackElo "2964"]
[TimeControl "180+1"]
[EndTime "11:07:47 PDT"]
[Termination "GHANDEEVAM2003 won on time"]

1. d4 {[%clk 0:03:00.9]} 1... e6 {[%clk 0:02:56.5]} 2. c4 {[%clk 0:03:00.1]}
2... c5 {[%clk 0:02:56.7]} 3. d5 {[%clk 0:03:00.1]} 3... exd5 {[%clk 0:02:57.6]}
4. cxd5 {[%clk 0:03:01]} 4... d6 {[%clk 0:02:58.2]} 5. Nc3 {[%clk 0:03:01.2]}
5... g6 {[%clk 0:02:58.5]} 6. e4 {[%clk 0:03:01.3]} 6... Bg7 {[%clk 0:02:58.9]}
7. h3 {[%clk 0:03:02]} 7... a6 {[%clk 0:02:59.3]} 8. a4 {[%clk 0:03:01.6]} 8...
Ne7 {[%clk 0:02:59.9]} 9. Bd3 {[%clk 0:03:00.5]} 9... O-O {[%clk 0:03:00.2]} 10.
Nge2 {[%clk 0:03:01.2]} 10... f5 {[%clk 0:02:59.4]} 11. O-O {[%clk 0:02:59.5]}
11... Nd7 {[%clk 0:02:59.4]} 12. f3 {[%clk 0:02:44.1]} 12... Ne5 {[%clk
0:02:43.3]} 13. Bc2 {[%clk 0:02:43.3]} 13... c4 {[%clk 0:02:43.8]} 14. Be3
{[%clk 0:02:41.7]} 14... Qc7 {[%clk 0:02:40.1]} 15. Nd4 {[%clk 0:02:36.9]} 15...
f4 {[%clk 0:02:39]} 16. Bf2 {[%clk 0:02:36.7]} 16... g5 {[%clk 0:02:36.4]} 17.
Qd2 {[%clk 0:02:32.9]} 17... h5 {[%clk 0:02:34.5]} 18. a5 {[%clk 0:02:22.6]}
18... g4 {[%clk 0:02:30.6]} 19. hxg4 {[%clk 0:02:21.5]} 19... hxg4 {[%clk
0:02:31.5]} 20. Rfd1 {[%clk 0:02:07.8]} 20... g3 {[%clk 0:02:28.2]} 21. Be1
{[%clk 0:02:07.7]} 21... N7g6 {[%clk 0:02:24.7]} 22. Kf1 {[%clk 0:02:06.2]}
22... Qe7 {[%clk 0:02:16.8]} 23. Nce2 {[%clk 0:01:05.4]} 23... Qh4 {[%clk
0:02:14.7]} 24. Ng1 {[%clk 0:01:05.9]} 24... Qh1 {[%clk 0:02:00.2]} 25. Qe2
{[%clk 0:01:05.9]} 25... Nh4 {[%clk 0:01:58.7]} 26. Bc3 {[%clk 0:01:05.9]} 26...
Rf6 {[%clk 0:01:53.5]} 27. Ne6 {[%clk 0:01:02.5]} 27... Bd7 {[%clk 0:01:35.1]}
28. Bxe5 {[%clk 0:00:59.1]} 28... dxe5 {[%clk 0:01:36]} 29. Ba4 {[%clk
0:00:53.9]} 29... Be8 {[%clk 0:01:04.6]} 30. Bxe8 {[%clk 0:00:38.2]} 30... Rxe8
{[%clk 0:01:05.5]} 31. Nxg7 {[%clk 0:00:38.6]} 31... Kxg7 {[%clk 0:01:05.2]} 32.
d6 {[%clk 0:00:39.5]} 32... Rh6 {[%clk 0:00:59.2]} 33. Rd2 {[%clk 0:00:32.5]}
33... Ng6 {[%clk 0:00:54.1]} 34. d7 {[%clk 0:00:31.4]} 34... Reh8 {[%clk
0:00:53.3]} 35. Qe1 {[%clk 0:00:09.6]} 35... Qxg1+ {[%clk 0:00:52.6]} 36. Ke2
{[%clk 0:00:10.5]} 36... Qxg2+ {[%clk 0:00:53.1]} 37. Kd1 {[%clk 0:00:10.8]}
37... Qxf3+ {[%clk 0:00:53.6]} 38. Kc2 {[%clk 0:00:11.7]} 38... Rh2 {[%clk
0:00:51.4]} 39. d8=Q {[%clk 0:00:10.4]} 39... Rxd8 {[%clk 0:00:51.1]} 0-1

[Event "*** SCC Grand Prix: Titled Tuesday Blitz"]
[Site "Chess.com"]
[Date "2020.10.06"]
[Round "6"]
[White "Butterfly"]
[Black "Chessdude1987"]
[Result "1-0"]
[WhiteElo "2410"]
[BlackElo "2236"]
[TimeControl "180+1"]
[EndTime "11:07:47 PDT"]
[Termination "Butterfly won on time"]

1. d4 {[%clk 0:03:00.7]} 1... e6 {[%clk 0:02:58.9]} 2. Nf3 {[%clk 0:02:59.8]}
2... f5 {[%clk 0:02:55.4]} 3. g3 {[%clk 0:02:52.2]} 3... Nf6 {[%clk 0:02:54.5]}
4. Bg2 {[%clk 0:02:52.9]} 4... Be7 {[%clk 0:02:54.6]} 5. O-O {[%clk 0:02:53.5]}
5... O-O {[%clk 0:02:54.6]} 6. c4 {[%clk 0:02:54.1]} 6... Ne4 {[%clk 0:02:54.7]}
7. b3 {[%clk 0:02:53.3]} 7... Bf6 {[%clk 0:02:54.1]} 8. Bb2 {[%clk 0:02:51.4]}
8... d5 {[%clk 0:02:53.9]} 9. Ne5 {[%clk 0:02:47.8]} 9... Nd7 {[%clk 0:02:28]}
10. Nd2 {[%clk 0:02:46.2]} 10... c5 {[%clk 0:02:16.3]} 11. e3 {[%clk 0:02:28.8]}
11... cxd4 {[%clk 0:02:04.1]} 12. exd4 {[%clk 0:02:28.3]} 12... b6 {[%clk
0:01:50.8]} 13. Nxe4 {[%clk 0:02:18.5]} 13... dxe4 {[%clk 0:01:26.5]} 14. f3
{[%clk 0:02:15.1]} 14... Bxe5 {[%clk 0:01:10.3]} 15. dxe5 {[%clk 0:02:16]} 15...
Bb7 {[%clk 0:01:03.6]} 16. fxe4 {[%clk 0:02:12.8]} 16... fxe4 {[%clk 0:01:00.8]}
17. Qg4 {[%clk 0:02:04.9]} 17... Qe7 {[%clk 0:00:57.5]} 18. Bxe4 {[%clk
0:01:57.8]} 18... Bxe4 {[%clk 0:00:54.7]} 19. Qxe4 {[%clk 0:01:57.2]} 19... Nc5
{[%clk 0:00:54.7]} 20. Qe3 {[%clk 0:01:51]} 20... Rxf1+ {[%clk 0:00:48.8]} 21.
Rxf1 {[%clk 0:01:50.2]} 21... Rd8 {[%clk 0:00:48.7]} 22. Bd4 {[%clk 0:01:48]}
22... h6 {[%clk 0:00:41.2]} 23. b4 {[%clk 0:01:46]} 23... Nd7 {[%clk 0:00:32.6]}
24. a3 {[%clk 0:01:44.7]} 24... Nf8 {[%clk 0:00:30.4]} 25. c5 {[%clk 0:01:42.5]}
25... bxc5 {[%clk 0:00:29.8]} 26. Bxc5 {[%clk 0:01:41.7]} 26... Qb7 {[%clk
0:00:26.8]} 27. Bxa7 {[%clk 0:01:35]} 27... Nh7 {[%clk 0:00:18.4]} 28. h4 {[%clk
0:01:33.5]} 28... Ra8 {[%clk 0:00:16.7]} 29. Bc5 {[%clk 0:01:23.3]} 29... Qa6
{[%clk 0:00:15.7]} 30. Qf3 {[%clk 0:01:15.9]} 30... Qxa3 {[%clk 0:00:11.2]} 31.
Qxa3 {[%clk 0:01:15.2]} 31... Rxa3 {[%clk 0:00:11.2]} 32. Kg2 {[%clk 0:01:14.4]}
32... Ra2+ {[%clk 0:00:10.4]} 33. Kf3 {[%clk 0:01:10.8]} 33... Nf8 {[%clk
0:00:10.5]} 34. Rd1 {[%clk 0:00:53.2]} 34... Ra3+ {[%clk 0:00:08.1]} 35. Kg2
{[%clk 0:00:52.4]} 35... Ra2+ {[%clk 0:00:03.8]} 36. Kh3 {[%clk 0:00:51.8]}
36... Ra3 {[%clk 0:00:04.2]} 37. Rd8 {[%clk 0:00:47.9]} 37... Rf3 {[%clk
0:00:04.1]} 38. b5 {[%clk 0:00:46.8]} 1-0

[Event "*** SCC Grand Prix: Titled Tuesday Blitz"]
[Site "Chess.com"]
[Date "2020.10.06"]
[Round "6"]
[White "Gabix_94"]
[Black "Fins0905"]
[Result "0-1"]
[WhiteElo "2791"]
[BlackElo "2649"]
[TimeControl "180+1"]
[EndTime "11:07:50 PDT"]
[Termination "Fins0905 won by resignation"]

1. c4 {[%clk 0:03:00.9]} 1... c6 {[%clk 0:02:59.3]} 2. d4 {[%clk 0:03:00.3]}
2... d5 {[%clk 0:02:59.4]} 3. Nc3 {[%clk 0:03:00.3]} 3... Nf6 {[%clk 0:02:59.3]}
4. Nf3 {[%clk 0:03:00.3]} 4... dxc4 {[%clk 0:02:58.3]} 5. e4 {[%clk 0:03:00.7]}
5... b5 {[%clk 0:02:58.3]} 6. Be2 {[%clk 0:02:56.7]} 6... Bg4 {[%clk 0:02:55.3]}
7. O-O {[%clk 0:02:54.5]} 7... e6 {[%clk 0:02:54.9]} 8. a4 {[%clk 0:02:54.2]}
8... b4 {[%clk 0:02:51.8]} 9. e5 {[%clk 0:02:53.4]} 9... Nd5 {[%clk 0:02:36.4]}
10. Ne4 {[%clk 0:02:52.3]} 10... h6 {[%clk 0:02:16]} 11. Bxc4 {[%clk 0:02:49.3]}
11... Be7 {[%clk 0:02:14.6]} 12. h3 {[%clk 0:02:48.6]} 12... Bf5 {[%clk
0:02:12.3]} 13. Ng3 {[%clk 0:02:47.8]} 13... Bg6 {[%clk 0:02:07.6]} 14. Bd3
{[%clk 0:02:46.4]} 14... Bxd3 {[%clk 0:02:01.4]} 15. Qxd3 {[%clk 0:02:47.3]}
15... O-O {[%clk 0:02:01.7]} 16. Qe4 {[%clk 0:02:45.9]} 16... Nd7 {[%clk
0:01:54.7]} 17. Qg4 {[%clk 0:02:45.5]} 17... Kh7 {[%clk 0:01:53.2]} 18. Bd2
{[%clk 0:02:38.1]} 18... c5 {[%clk 0:01:42.4]} 19. dxc5 {[%clk 0:02:31]} 19...
Nxc5 {[%clk 0:01:42.1]} 20. Rad1 {[%clk 0:02:25.1]} 20... Nxa4 {[%clk
0:01:31.1]} 21. Nh5 {[%clk 0:02:13]} 21... Rg8 {[%clk 0:01:29.4]} 22. Bc1 {[%clk
0:02:03.6]} 22... Nc5 {[%clk 0:01:27]} 23. Nf4 {[%clk 0:01:52.9]} 23... Qd7
{[%clk 0:01:09.3]} 24. Be3 {[%clk 0:01:41.5]} 24... Rad8 {[%clk 0:00:53.6]} 25.
Nxd5 {[%clk 0:01:30.4]} 25... exd5 {[%clk 0:00:53.1]} 26. Qxb4 {[%clk
0:01:28.2]} 26... Ne4 {[%clk 0:00:47.2]} 27. Qb3 {[%clk 0:01:26.7]} 27... a5
{[%clk 0:00:36.4]} 28. Rd3 {[%clk 0:01:20.9]} 28... Qe6 {[%clk 0:00:29.2]} 29.
Nd4 {[%clk 0:01:17]} 29... Qg6 {[%clk 0:00:25.7]} 30. Qb5 {[%clk 0:01:13.5]}
30... Rb8 {[%clk 0:00:22.1]} 31. Qxd5 {[%clk 0:01:12.1]} 31... Nxf2 {[%clk
0:00:16.5]} 32. Bxf2 {[%clk 0:00:55.1]} 32... Qxd3 {[%clk 0:00:15.5]} 33. Qxf7
{[%clk 0:00:55.7]} 33... Bg5 {[%clk 0:00:13.9]} 34. Nf3 {[%clk 0:00:55.8]} 34...
Be3 {[%clk 0:00:12.4]} 35. Kh2 {[%clk 0:00:50.3]} 35... Rgf8 {[%clk 0:00:11.7]}
36. Qh5 {[%clk 0:00:40.6]} 36... Qxf1 {[%clk 0:00:10.7]} 37. Bxe3 {[%clk
0:00:41]} 37... Rxf3 {[%clk 0:00:10.5]} 38. e6 {[%clk 0:00:35.6]} 38... Rf6
{[%clk 0:00:09.4]} 39. e7 {[%clk 0:00:35.1]} 39... Re6 {[%clk 0:00:08.5]} 40.
Qf5+ {[%clk 0:00:35.5]} 40... Qxf5 {[%clk 0:00:08]} 0-1

[Event "*** SCC Grand Prix: Titled Tuesday Blitz"]
[Site "Chess.com"]
[Date "2020.10.06"]
[Round "6"]
[White "ftorodent"]
[Black "TudorAnton"]
[Result "1-0"]
[WhiteElo "2676"]
[BlackElo "2500"]
[TimeControl "180+1"]
[EndTime "11:07:51 PDT"]
[Termination "ftorodent won by resignation"]

1. d4 {[%clk 0:03:00.9]} 1... Nf6 {[%clk 0:02:55.2]} 2. c4 {[%clk 0:02:59.9]}
2... e6 {[%clk 0:02:54.4]} 3. Nf3 {[%clk 0:02:59.2]} 3... Bb4+ {[%clk
0:02:54.9]} 4. Bd2 {[%clk 0:02:58.8]} 4... c5 {[%clk 0:02:47.2]} 5. Bxb4 {[%clk
0:02:56.4]} 5... cxb4 {[%clk 0:02:48.1]} 6. a3 {[%clk 0:02:54]} 6... bxa3 {[%clk
0:02:43]} 7. Rxa3 {[%clk 0:02:54]} 7... O-O {[%clk 0:02:43.9]} 8. Nc3 {[%clk
0:02:53.6]} 8... Nc6 {[%clk 0:02:43.1]} 9. e3 {[%clk 0:02:50.7]} 9... d6 {[%clk
0:02:40.6]} 10. Be2 {[%clk 0:02:50.7]} 10... a5 {[%clk 0:02:39.3]} 11. O-O
{[%clk 0:02:50.4]} 11... Re8 {[%clk 0:02:38.6]} 12. Nb5 {[%clk 0:02:42.6]} 12...
b6 {[%clk 0:02:34.1]} 13. Nd2 {[%clk 0:02:33.3]} 13... Ba6 {[%clk 0:02:32.7]}
14. Bf3 {[%clk 0:02:27.5]} 14... Rc8 {[%clk 0:02:31.3]} 15. Nc3 {[%clk
0:02:13.1]} 15... Nb4 {[%clk 0:02:20.9]} 16. b3 {[%clk 0:02:09.6]} 16... d5
{[%clk 0:01:58.7]} 17. Be2 {[%clk 0:02:09.5]} 17... dxc4 {[%clk 0:01:55.1]} 18.
bxc4 {[%clk 0:02:08.1]} 18... Bb7 {[%clk 0:01:51.4]} 19. Na2 {[%clk 0:02:02.8]}
19... Nxa2 {[%clk 0:01:42.6]} 20. Rxa2 {[%clk 0:02:02]} 20... e5 {[%clk
0:01:43.2]} 21. d5 {[%clk 0:01:57.3]} 21... Nd7 {[%clk 0:01:43.7]} 22. Bg4
{[%clk 0:01:55.6]} 22... g6 {[%clk 0:01:36.3]} 23. Bxd7 {[%clk 0:01:46.3]} 23...
Qxd7 {[%clk 0:01:36.2]} 24. Qb3 {[%clk 0:01:45.8]} 24... Ba6 {[%clk 0:01:24]}
25. Qxb6 {[%clk 0:01:40.9]} 25... Bxc4 {[%clk 0:01:23.6]} 26. Nxc4 {[%clk
0:01:32.8]} 26... Rxc4 {[%clk 0:01:24.5]} 27. Rxa5 {[%clk 0:01:33]} 27... Rec8
{[%clk 0:01:10.6]} 28. h3 {[%clk 0:01:32.2]} 28... e4 {[%clk 0:01:07.1]} 29. Kh2
{[%clk 0:01:04.6]} 29... Rc2 {[%clk 0:01:00.4]} 30. Kg1 {[%clk 0:00:40.6]} 30...
Rc1 {[%clk 0:00:54.7]} 31. Rxc1 {[%clk 0:00:38.9]} 31... Rxc1+ {[%clk
0:00:55.6]} 32. Kh2 {[%clk 0:00:39.1]} 32... Qc7+ {[%clk 0:00:56.4]} 33. Qxc7
{[%clk 0:00:39]} 33... Rxc7 {[%clk 0:00:57.3]} 34. Kg3 {[%clk 0:00:38.2]} 34...
Rc2 {[%clk 0:00:54.9]} 35. Ra4 {[%clk 0:00:35.4]} 35... Rd2 {[%clk 0:00:54.8]}
36. Rd4 {[%clk 0:00:32.9]} 36... Rxd4 {[%clk 0:00:54.9]} 37. exd4 {[%clk
0:00:33.2]} 37... Kf8 {[%clk 0:00:55.4]} 38. Kf4 {[%clk 0:00:33.3]} 38... f5
{[%clk 0:00:55.5]} 39. g4 {[%clk 0:00:28]} 39... fxg4 {[%clk 0:00:55.6]} 40.
Kxg4 {[%clk 0:00:27.7]} 40... Ke7 {[%clk 0:00:55.1]} 41. Kf4 {[%clk 0:00:28]}
41... Kd6 {[%clk 0:00:53.7]} 42. Kxe4 {[%clk 0:00:28]} 42... g5 {[%clk
0:00:50.9]} 43. Kf5 {[%clk 0:00:26]} 43... Kxd5 {[%clk 0:00:47.4]} 44. Kxg5
{[%clk 0:00:26.2]} 44... Kxd4 {[%clk 0:00:48.3]} 45. f4 {[%clk 0:00:23.8]} 45...
Ke4 {[%clk 0:00:46.6]} 46. f5 {[%clk 0:00:21.9]} 46... Ke5 {[%clk 0:00:47.5]}
47. h4 {[%clk 0:00:22.3]} 47... h5 {[%clk 0:00:46.3]} 48. Kg6 {[%clk 0:00:22.3]}
1-0

[Event "*** SCC Grand Prix: Titled Tuesday Blitz"]
[Site "Chess.com"]
[Date "2020.10.06"]
[Round "6"]
[White "hurricane7791"]
[Black "Zq1"]
[Result "1-0"]
[WhiteElo "2698"]
[BlackElo "2521"]
[TimeControl "180+1"]
[EndTime "11:07:55 PDT"]
[Termination "hurricane7791 won on time"]

1. d4 {[%clk 0:03:00.9]} 1... f6 {[%clk 0:02:58.7]} 2. e4 {[%clk 0:03:00]} 2...
e6 {[%clk 0:02:57.8]} 3. c4 {[%clk 0:02:59.3]} 3... Ne7 {[%clk 0:02:56.1]} 4.
Nc3 {[%clk 0:02:58.8]} 4... d5 {[%clk 0:02:55.4]} 5. Nf3 {[%clk 0:02:57]} 5...
Nbc6 {[%clk 0:02:50.9]} 6. exd5 {[%clk 0:02:50.2]} 6... exd5 {[%clk 0:02:50.5]}
7. cxd5 {[%clk 0:02:51.1]} 7... Nxd5 {[%clk 0:02:47.2]} 8. Bc4 {[%clk
0:02:51.1]} 8... Qe7+ {[%clk 0:02:14.5]} 9. Kf1 {[%clk 0:02:19.9]} 9... Nb6
{[%clk 0:01:58.6]} 10. Bb3 {[%clk 0:02:10]} 10... Bg4 {[%clk 0:01:48.5]} 11. h3
{[%clk 0:02:03]} 11... Bh5 {[%clk 0:01:46.4]} 12. g4 {[%clk 0:02:02.6]} 12...
Bf7 {[%clk 0:01:45.7]} 13. d5 {[%clk 0:02:00.2]} 13... O-O-O {[%clk 0:01:42.9]}
14. Kg2 {[%clk 0:02:00.1]} 14... Na5 {[%clk 0:01:40.8]} 15. Re1 {[%clk
0:01:50.9]} 15... Qd6 {[%clk 0:01:26.7]} 16. Nb5 {[%clk 0:01:45.1]} 16... Qb4
{[%clk 0:01:23.1]} 17. Nxa7+ {[%clk 0:01:38.8]} 17... Kb8 {[%clk 0:01:22]} 18.
Bd2 {[%clk 0:01:38.7]} 18... Nxb3 {[%clk 0:00:58.2]} 19. Bxb4 {[%clk 0:01:36.9]}
19... Nxa1 {[%clk 0:00:56.4]} 20. Bxf8 {[%clk 0:01:34.7]} 20... Rhxf8 {[%clk
0:00:53.5]} 21. Nb5 {[%clk 0:01:32]} 21... Rxd5 {[%clk 0:00:50.4]} 22. Nbd4
{[%clk 0:01:29.9]} 22... c5 {[%clk 0:00:43.9]} 23. Qd2 {[%clk 0:01:21.3]} 23...
cxd4 {[%clk 0:00:39.8]} 24. Qb4 {[%clk 0:01:16.2]} 24... Nd7 {[%clk 0:00:26.4]}
25. Nxd4 {[%clk 0:01:04.6]} 25... Rc8 {[%clk 0:00:13.8]} 26. Rxa1 {[%clk
0:00:58]} 26... Ne5 {[%clk 0:00:13.9]} 27. Nf5 {[%clk 0:00:52.2]} 27... Rd3
{[%clk 0:00:10.3]} 28. Ne3 {[%clk 0:00:39.8]} 28... Be8 {[%clk 0:00:09.2]} 29.
Rd1 {[%clk 0:00:37.4]} 29... Bc6+ {[%clk 0:00:09]} 30. Kf1 {[%clk 0:00:37.5]}
30... Rcd8 {[%clk 0:00:08]} 31. Rxd3 {[%clk 0:00:36.6]} 31... Rxd3 {[%clk
0:00:08]} 32. Qf8+ {[%clk 0:00:36.2]} 32... Ka7 {[%clk 0:00:07.4]} 33. Qxg7
{[%clk 0:00:36.4]} 33... Nf3 {[%clk 0:00:06]} 34. Qxf6 {[%clk 0:00:34.1]} 34...
Nh2+ {[%clk 0:00:05.2]} 35. Ke2 {[%clk 0:00:32]} 35... Rd7 {[%clk 0:00:02.8]}
36. Qe5 {[%clk 0:00:28.5]} 36... Bf3+ {[%clk 0:00:02.3]} 37. Ke1 {[%clk
0:00:28]} 1-0

[Event "*** SCC Grand Prix: Titled Tuesday Blitz"]
[Site "Chess.com"]
[Date "2020.10.06"]
[Round "6"]
[White "DenisQ"]
[Black "Fandorine"]
[Result "0-1"]
[WhiteElo "2666"]
[BlackElo "2874"]
[TimeControl "180+1"]
[EndTime "11:07:56 PDT"]
[Termination "Fandorine won by resignation"]

1. Nf3 {[%clk 0:03:00]} 1... Nf6 {[%clk 0:03:00.4]} 2. g3 {[%clk 0:02:59.6]}
2... g6 {[%clk 0:03:00.9]} 3. Bg2 {[%clk 0:03:00]} 3... Bg7 {[%clk 0:03:01.8]}
4. O-O {[%clk 0:03:00.5]} 4... O-O {[%clk 0:03:02.4]} 5. c4 {[%clk 0:03:01.1]}
5... d6 {[%clk 0:03:01]} 6. Nc3 {[%clk 0:03:01.4]} 6... Nc6 {[%clk 0:02:59]} 7.
Rb1 {[%clk 0:03:00.9]} 7... e5 {[%clk 0:02:54.8]} 8. b4 {[%clk 0:03:00.5]} 8...
Re8 {[%clk 0:02:50.7]} 9. b5 {[%clk 0:03:00.2]} 9... Nd4 {[%clk 0:02:50]} 10. d3
{[%clk 0:02:58.6]} 10... Ne6 {[%clk 0:02:48.1]} 11. Ng5 {[%clk 0:02:55.4]} 11...
Nc5 {[%clk 0:02:32.8]} 12. Qc2 {[%clk 0:02:46.1]} 12... h6 {[%clk 0:02:27.5]}
13. Nge4 {[%clk 0:02:45.2]} 13... Nfd7 {[%clk 0:02:19.9]} 14. Nd5 {[%clk
0:02:32.1]} 14... Ne6 {[%clk 0:02:17.3]} 15. Bb2 {[%clk 0:02:26.7]} 15... f5
{[%clk 0:02:14.1]} 16. Nd2 {[%clk 0:02:26.9]} 16... Nb6 {[%clk 0:01:51.6]} 17.
e3 {[%clk 0:02:20.7]} 17... h5 {[%clk 0:01:45.9]} 18. f4 {[%clk 0:02:10.8]}
18... h4 {[%clk 0:01:42.9]} 19. Rbe1 {[%clk 0:01:56]} 19... hxg3 {[%clk
0:01:42.6]} 20. hxg3 {[%clk 0:01:56.3]} 20... Nd7 {[%clk 0:01:42.3]} 21. Nf3
{[%clk 0:01:50.7]} 21... a5 {[%clk 0:01:36.4]} 22. e4 {[%clk 0:01:45.5]} 22...
fxe4 {[%clk 0:01:20.3]} 23. Rxe4 {[%clk 0:01:34.8]} 23... c6 {[%clk 0:01:11.6]}
24. bxc6 {[%clk 0:01:30]} 24... bxc6 {[%clk 0:01:12.5]} 25. Nc3 {[%clk
0:01:27.1]} 25... exf4 {[%clk 0:00:55.2]} 26. d4 {[%clk 0:00:44.9]} 26... Rb8
{[%clk 0:00:46.8]} 27. gxf4 {[%clk 0:00:38.9]} 27... Nf6 {[%clk 0:00:46.4]} 28.
Ree1 {[%clk 0:00:33.6]} 28... Nxf4 {[%clk 0:00:43.5]} 29. Bc1 {[%clk 0:00:32.4]}
29... Bf5 {[%clk 0:00:40.2]} 30. Qd2 {[%clk 0:00:29.5]} 30... Nxg2 {[%clk
0:00:36]} 31. Qxg2 {[%clk 0:00:29]} 31... Rxe1 {[%clk 0:00:33.7]} 32. Rxe1
{[%clk 0:00:28.3]} 32... Qd7 {[%clk 0:00:34.2]} 33. Nh4 {[%clk 0:00:27.5]} 33...
Re8 {[%clk 0:00:30.6]} 34. Rxe8+ {[%clk 0:00:24.4]} 34... Qxe8 {[%clk
0:00:31.5]} 35. Nxf5 {[%clk 0:00:23.9]} 35... gxf5 {[%clk 0:00:32.4]} 36. Bh6
{[%clk 0:00:22.6]} 36... Ng4 {[%clk 0:00:32.6]} 0-1

[Event "*** SCC Grand Prix: Titled Tuesday Blitz"]
[Site "Chess.com"]
[Date "2020.10.06"]
[Round "6"]
[White "IMAghasiyevKamal"]
[Black "Sergienko_Sergey"]
[Result "0-1"]
[WhiteElo "2485"]
[BlackElo "2373"]
[TimeControl "180+1"]
[EndTime "11:07:59 PDT"]
[Termination "Sergienko_Sergey won on time"]

1. e4 {[%clk 0:03:00.9]} 1... c5 {[%clk 0:02:59.6]} 2. Nf3 {[%clk 0:02:59.8]}
2... a6 {[%clk 0:02:58.8]} 3. c3 {[%clk 0:02:52.9]} 3... e6 {[%clk 0:02:58]} 4.
d4 {[%clk 0:02:48.2]} 4... d5 {[%clk 0:02:57.9]} 5. exd5 {[%clk 0:02:35.2]} 5...
exd5 {[%clk 0:02:57.8]} 6. Be3 {[%clk 0:02:23.9]} 6... c4 {[%clk 0:02:56.1]} 7.
b3 {[%clk 0:02:15.2]} 7... cxb3 {[%clk 0:02:55.7]} 8. axb3 {[%clk 0:02:15.8]}
8... Nf6 {[%clk 0:02:54.6]} 9. Bd3 {[%clk 0:02:13.3]} 9... Be7 {[%clk
0:02:50.6]} 10. O-O {[%clk 0:02:11.7]} 10... Bg4 {[%clk 0:02:47.4]} 11. h3
{[%clk 0:02:09]} 11... Bh5 {[%clk 0:02:46]} 12. Nbd2 {[%clk 0:02:06.5]} 12...
O-O {[%clk 0:02:44]} 13. Qc2 {[%clk 0:02:04.3]} 13... Bg6 {[%clk 0:02:43.4]} 14.
Bxg6 {[%clk 0:01:59.2]} 14... hxg6 {[%clk 0:02:42.6]} 15. Ne5 {[%clk 0:01:58.8]}
15... Nbd7 {[%clk 0:02:38]} 16. f4 {[%clk 0:01:57.5]} 16... Rc8 {[%clk
0:02:36.4]} 17. Qd3 {[%clk 0:01:31.4]} 17... Re8 {[%clk 0:02:19.2]} 18. f5
{[%clk 0:01:07.4]} 18... gxf5 {[%clk 0:02:02.7]} 19. Rxf5 {[%clk 0:01:04.4]}
19... Nf8 {[%clk 0:01:43]} 20. Raf1 {[%clk 0:01:00.2]} 20... Qc7 {[%clk
0:01:25.8]} 21. c4 {[%clk 0:00:51.6]} 21... dxc4 {[%clk 0:01:21.8]} 22. bxc4
{[%clk 0:00:50.4]} 22... N8h7 {[%clk 0:01:04]} 23. c5 {[%clk 0:00:32.1]} 23...
Bxc5 {[%clk 0:00:52.4]} 24. Rc1 {[%clk 0:00:22.5]} 24... Qd8 {[%clk 0:00:37.9]}
25. Ndf3 {[%clk 0:00:16.4]} 25... Bd6 {[%clk 0:00:35.3]} 26. Qb3 {[%clk
0:00:15.7]} 26... Rxc1+ {[%clk 0:00:33.2]} 27. Bxc1 {[%clk 0:00:16.6]} 27...
Bxe5 {[%clk 0:00:32.6]} 28. dxe5 {[%clk 0:00:15.2]} 28... Qd5 {[%clk 0:00:31.1]}
29. Qc3 {[%clk 0:00:09.7]} 29... Ne4 {[%clk 0:00:28.9]} 30. Qc7 {[%clk
0:00:05.1]} 30... Ng3 {[%clk 0:00:25.2]} 31. Rg5 {[%clk 0:00:02.1]} 31... Nxg5
{[%clk 0:00:23.2]} 0-1